[Event "Titled Tuesday Blitz January 10 Late 2023"]
[White "Khandelwal, Ankush"]
[Black "Itkis, Boris"]
[WhiteFideId "413470"]
[BlackFideId "1209167"]
[WhiteElo "2205"]
[BlackElo "2329"]
[Result "0-1"]
[Round "09"]
[TimeControl "180+2"]
[Date "2023.01.10"]
[WhiteClock "0:00:01"]
[BlackClock "0:01:13"]

1. e4 {[%clk 0:00:00]}  e5 {[%clk 0:00:00]} 2. Nf3 {[%clk 0:03:00]}  Nc6 {[%clk 0:02:57]} 3. d4 {[%clk 0:03:00]}  exd4 {[%clk 0:02:58]} 4. Nxd4 {[%clk 0:03:01]}  Nf6 {[%clk 0:02:58]} 5. Nxc6 {[%clk 0:03:02]}  bxc6 {[%clk 0:02:58]} 6. e5 {[%clk 0:03:02]}  Qe7 {[%clk 0:02:59]} 7. Qe2 {[%clk 0:03:02]}  Nd5 {[%clk 0:03:00]} 8. g3 {[%clk 0:03:03]}  g6 {[%clk 0:03:00]} 9. c4 {[%clk 0:03:00]}  Nb6 {[%clk 0:02:56]} 10. b3 {[%clk 0:03:00]}  Bg7 {[%clk 0:02:55]} 11. Bb2 {[%clk 0:03:01]}  a5 {[%clk 0:02:54]} 12. Bg2 {[%clk 0:03:02]}  a4 {[%clk 0:02:52]} 13. O-O {[%clk 0:03:00]}  O-O {[%clk 0:02:52]} 14. Nd2 {[%clk 0:03:00]}  d5 {[%clk 0:02:49]} 15. Rfe1 {[%clk 0:02:49]}  Be6 {[%clk 0:02:25]} 16. f4 {[%clk 0:02:34]}  dxc4 {[%clk 0:02:22]} 17. bxc4 {[%clk 0:02:18]}  Qc5+ {[%clk 0:02:20]} 18. Kh1 {[%clk 0:02:12]}  Nxc4 {[%clk 0:02:18]} 19. Rac1 {[%clk 0:02:11]}  a3 {[%clk 0:02:17]} 20. Ba1 {[%clk 0:02:03]}  Ra4 {[%clk 0:02:17]} 21. Rc2 {[%clk 0:01:51]}  Qb5 {[%clk 0:02:17]} 22. Ne4 {[%clk 0:01:11]}  Nb2 {[%clk 0:01:58]} 23. Qf2 {[%clk 0:00:49]}  Nd3 {[%clk 0:01:50]} 24. Qf1 {[%clk 0:00:37]}  Nxe1 {[%clk 0:01:47]} 25. Qxe1 {[%clk 0:00:34]}  Rb4 {[%clk 0:01:47]} 26. Rc1 {[%clk 0:00:35]}  Bd5 {[%clk 0:01:40]} 27. Bc3 {[%clk 0:00:32]}  Rc4 {[%clk 0:01:36]} 28. Nf6+ {[%clk 0:00:23]}  Bxf6 {[%clk 0:01:27]} 29. exf6 {[%clk 0:00:19]}  Bxg2+ {[%clk 0:01:27]} 30. Kxg2 {[%clk 0:00:20]}  Qd5+ {[%clk 0:01:24]} 31. Kg1 {[%clk 0:00:21]}  Qc5+ {[%clk 0:01:24]} 32. Kg2 {[%clk 0:00:20]}  Rxc3 {[%clk 0:01:25]} 33. Rxc3 {[%clk 0:00:20]}  Qd5+ {[%clk 0:01:24]} 34. Kg1 {[%clk 0:00:19]}  Qxa2 {[%clk 0:01:24]} 35. Rd3 {[%clk 0:00:19]}  Qb2 {[%clk 0:01:24]} 36. Qe7 {[%clk 0:00:14]}  Qb1+ {[%clk 0:01:17]} 37. Kg2 {[%clk 0:00:01]}  Qxd3 {[%clk 0:01:13]} 0-1


[Site "https://www.chess.com"]

[Event "Titled Tuesday Blitz January 10 Late 2023"]
[White "Skurikhin, Dmitrij"]
[Black "Wu, Brandon"]
[WhiteFideId "4161297"]
[BlackFideId "30909228"]
[WhiteElo "2297"]
[BlackElo "2123"]
[Result "1/2-1/2"]
[Round "09"]
[TimeControl "180+2"]
[Date "2023.01.10"]
[WhiteClock "0:00:48"]
[BlackClock "0:01:38"]

1. d4 {[%clk 0:00:00]}  Nf6 {[%clk 0:00:00]} 2. c4 {[%clk 0:03:00]}  g6 {[%clk 0:02:59]} 3. Nc3 {[%clk 0:02:59]}  d5 {[%clk 0:02:59]} 4. cxd5 {[%clk 0:02:58]}  Nxd5 {[%clk 0:03:00]} 5. e4 {[%clk 0:02:55]}  Nxc3 {[%clk 0:03:01]} 6. bxc3 {[%clk 0:02:54]}  Bg7 {[%clk 0:03:01]} 7. Nf3 {[%clk 0:02:54]}  c5 {[%clk 0:03:02]} 8. Rb1 {[%clk 0:02:54]}  O-O {[%clk 0:03:02]} 9. Be2 {[%clk 0:02:54]}  cxd4 {[%clk 0:03:01]} 10. cxd4 {[%clk 0:02:53]}  Qa5+ {[%clk 0:03:00]} 11. Bd2 {[%clk 0:02:53]}  Qxa2 {[%clk 0:03:01]} 12. O-O {[%clk 0:02:51]}  b6 {[%clk 0:03:01]} 13. Qc1 {[%clk 0:02:51]}  Qe6 {[%clk 0:02:58]} 14. Bc4 {[%clk 0:02:48]}  Qxe4 {[%clk 0:02:57]} 15. Re1 {[%clk 0:02:14]}  Qb7 {[%clk 0:02:50]} 16. Bb4 {[%clk 0:02:14]}  Re8 {[%clk 0:02:50]} 17. Ng5 {[%clk 0:02:12]}  e6 {[%clk 0:02:39]} 18. d5 {[%clk 0:02:04]}  Na6 {[%clk 0:02:36]} 19. dxe6 {[%clk 0:02:04]}  Bxe6 {[%clk 0:02:19]} 20. Nxe6 {[%clk 0:02:01]}  fxe6 {[%clk 0:02:19]} 21. Rxe6 {[%clk 0:01:54]}  Kh8 {[%clk 0:02:20]} 22. Bc3 {[%clk 0:01:44]}  Nc5 {[%clk 0:02:17]} 23. Rxg6 {[%clk 0:01:34]}  Re1+ {[%clk 0:02:13]} 24. Qxe1 {[%clk 0:01:16]}  hxg6 {[%clk 0:01:46]} 25. Qe3 {[%clk 0:01:10]}  Bxc3 {[%clk 0:01:46]} 26. Qxc3+ {[%clk 0:00:57]}  Qg7 {[%clk 0:01:43]} 27. Qh3+ {[%clk 0:00:56]}  Qh7 {[%clk 0:01:38]} 28. Qc3+ {[%clk 0:00:55]}  Qg7 {[%clk 0:01:38]} 29. Qh3+ {[%clk 0:00:49]}  Qh7 {[%clk 0:01:38]} 30. Qc3+ {[%clk 0:00:48]}  Qg7 {[%clk 0:01:38]} 1/2-1/2


[Site "https://www.chess.com"]

[Event "Titled Tuesday Blitz January 10 Late 2023"]
[White "Bambino Filho, Antonio Carlos"]
[Black "Osmonbekov, Talaibek"]
[WhiteFideId "2113163"]
[BlackFideId "2017253"]
[WhiteElo "2144"]
[BlackElo "2137"]
[Result "1-0"]
[Round "09"]
[TimeControl "180+2"]
[Date "2023.01.10"]
[WhiteClock "0:00:15"]
[BlackClock "0:00:04"]

1. d4 {[%clk 0:00:00]}  e6 {[%clk 0:00:00]} 2. Nf3 {[%clk 0:03:00]}  f5 {[%clk 0:02:59]} 3. g3 {[%clk 0:02:57]}  Nf6 {[%clk 0:02:59]} 4. Bg2 {[%clk 0:02:56]}  Be7 {[%clk 0:02:59]} 5. O-O {[%clk 0:02:57]}  O-O {[%clk 0:03:00]} 6. c4 {[%clk 0:02:58]}  d6 {[%clk 0:03:00]} 7. b3 {[%clk 0:02:58]}  a5 {[%clk 0:03:01]} 8. Nc3 {[%clk 0:02:55]}  Qe8 {[%clk 0:03:01]} 9. Bb2 {[%clk 0:02:52]}  Qh5 {[%clk 0:02:48]} 10. Qd3 {[%clk 0:02:51]}  Nc6 {[%clk 0:02:37]} 11. a3 {[%clk 0:02:51]}  e5 {[%clk 0:02:35]} 12. e4 {[%clk 0:02:50]}  exd4 {[%clk 0:02:32]} 13. Nxd4 {[%clk 0:01:55]}  Ng4 {[%clk 0:02:30]} 14. h3 {[%clk 0:01:45]}  Nge5 {[%clk 0:02:30]} 15. Qd1 {[%clk 0:01:39]}  Qxd1 {[%clk 0:02:31]} 16. Raxd1 {[%clk 0:01:34]}  Nxd4 {[%clk 0:01:55]} 17. Rxd4 {[%clk 0:01:35]}  f4 {[%clk 0:01:55]} 18. gxf4 {[%clk 0:01:35]}  Rxf4 {[%clk 0:01:55]} 19. Nd5 {[%clk 0:01:30]}  Rf7 {[%clk 0:01:52]} 20. Nxc7 {[%clk 0:01:30]}  Rb8 {[%clk 0:01:45]} 21. Nb5 {[%clk 0:01:29]}  Nf3+ {[%clk 0:01:38]} 22. Bxf3 {[%clk 0:01:29]}  Rxf3 {[%clk 0:01:24]} 23. Kg2 {[%clk 0:01:22]}  Rxb3 {[%clk 0:01:25]} 24. Bc3 {[%clk 0:01:10]}  Be6 {[%clk 0:01:23]} 25. Rc1 {[%clk 0:01:01]}  Bf6 {[%clk 0:00:45]} 26. Rxd6 {[%clk 0:00:57]}  Bxc4 {[%clk 0:00:31]} 27. Bxf6 {[%clk 0:00:56]}  Bxb5 {[%clk 0:00:31]} 28. Be5 {[%clk 0:00:54]}  Re8 {[%clk 0:00:31]} 29. f4 {[%clk 0:00:50]}  Bc6 {[%clk 0:00:29]} 30. Rcxc6 {[%clk 0:00:45]}  bxc6 {[%clk 0:00:28]} 31. Rd7 {[%clk 0:00:38]}  Kf8 {[%clk 0:00:27]} 32. Bxg7+ {[%clk 0:00:38]}  Kg8 {[%clk 0:00:17]} 33. Be5 {[%clk 0:00:33]}  Rxa3 {[%clk 0:00:17]} 34. Rg7+ {[%clk 0:00:33]}  Kf8 {[%clk 0:00:16]} 35. Rxh7 {[%clk 0:00:32]}  Re3 {[%clk 0:00:16]} 36. Ra7 {[%clk 0:00:30]}  Rxe4 {[%clk 0:00:14]} 37. Rxa5 {[%clk 0:00:21]}  Rd8 {[%clk 0:00:13]} 38. Kf3 {[%clk 0:00:21]}  Rc4 {[%clk 0:00:11]} 39. Kg4 {[%clk 0:00:21]}  Kf7 {[%clk 0:00:10]} 40. Kf5 {[%clk 0:00:20]}  Rc2 {[%clk 0:00:10]} 41. Ra7+ {[%clk 0:00:18]}  Kf8 {[%clk 0:00:06]} 42. h4 {[%clk 0:00:17]}  Rh2 {[%clk 0:00:05]} 43. Bf6 {[%clk 0:00:16]}  Rd5+ {[%clk 0:00:04]} 44. Kg6 {[%clk 0:00:15]} 1-0


[Site "https://www.chess.com"]

[Event "Titled Tuesday Blitz January 10 Late 2023"]
[White "Andrews, Todd"]
[Black "Leiva, Gianmarco"]
[WhiteFideId "2012456"]
[BlackFideId "3804399"]
[WhiteElo "2220"]
[BlackElo "2392"]
[Result "0-1"]
[Round "09"]
[TimeControl "180+2"]
[Date "2023.01.10"]
[WhiteClock "0:01:02"]
[BlackClock "0:00:22"]

1. e4 {[%clk 0:00:00]}  c5 {[%clk 0:00:00]} 2. Nf3 {[%clk 0:03:00]}  d6 {[%clk 0:02:58]} 3. d4 {[%clk 0:03:00]}  cxd4 {[%clk 0:02:58]} 4. Nxd4 {[%clk 0:03:01]}  Nf6 {[%clk 0:02:59]} 5. Nc3 {[%clk 0:03:02]}  a6 {[%clk 0:02:59]} 6. Bc4 {[%clk 0:03:02]}  e6 {[%clk 0:02:59]} 7. Bb3 {[%clk 0:03:03]}  Be7 {[%clk 0:02:59]} 8. Qe2 {[%clk 0:03:04]}  O-O {[%clk 0:03:00]} 9. g4 {[%clk 0:03:04]}  Nc6 {[%clk 0:03:00]} 10. Be3 {[%clk 0:03:05]}  Nd7 {[%clk 0:02:59]} 11. O-O-O {[%clk 0:03:03]}  Qc7 {[%clk 0:02:56]} 12. g5 {[%clk 0:03:00]}  Nc5 {[%clk 0:02:56]} 13. h4 {[%clk 0:02:55]}  b5 {[%clk 0:02:51]} 14. Kb1 {[%clk 0:02:51]}  Rb8 {[%clk 0:02:47]} 15. h5 {[%clk 0:02:27]}  b4 {[%clk 0:02:39]} 16. Na4 {[%clk 0:02:16]}  Nxe4 {[%clk 0:02:39]} 17. g6 {[%clk 0:02:15]}  d5 {[%clk 0:02:35]} 18. h6 {[%clk 0:02:12]}  fxg6 {[%clk 0:02:29]} 19. hxg7 {[%clk 0:02:11]}  Rf7 {[%clk 0:02:21]} 20. Nxc6 {[%clk 0:02:11]}  Qxc6 {[%clk 0:02:21]} 21. Bd4 {[%clk 0:01:48]}  Bf6 {[%clk 0:02:11]} 22. Bxf6 {[%clk 0:01:48]}  Nxf6 {[%clk 0:01:48]} 23. Qe5 {[%clk 0:01:42]}  Rb5 {[%clk 0:01:42]} 24. Rh4 {[%clk 0:01:41]}  Bd7 {[%clk 0:01:35]} 25. Rdh1 {[%clk 0:01:28]}  a5 {[%clk 0:01:03]} 26. Rf4 {[%clk 0:01:27]}  d4 {[%clk 0:00:31]} 27. Qxd4 {[%clk 0:01:12]}  Qxh1+ {[%clk 0:00:23]} 28. Qd1 {[%clk 0:01:02]}  Qxd1# {[%clk 0:00:22]} 0-1


[Site "https://www.chess.com"]

[Event "Titled Tuesday Blitz January 10 Late 2023"]
[White "Seletsky, Grigory"]
[Black "Rangel, Daniel"]
[WhiteFideId "14112191"]
[BlackFideId "2124475"]
[WhiteElo "2259"]
[BlackElo "2207"]
[Result "1/2-1/2"]
[Round "09"]
[TimeControl "180+2"]
[Date "2023.01.10"]
[WhiteClock "0:02:45"]
[BlackClock "0:02:42"]

1. e4 {[%clk 0:00:00]}  c5 {[%clk 0:00:00]} 2. Nf3 {[%clk 0:02:59]}  d6 {[%clk 0:02:47]} 3. c3 {[%clk 0:02:54]}  Nc6 {[%clk 0:02:48]} 4. h3 {[%clk 0:02:53]}  Nf6 {[%clk 0:02:47]} 5. d3 {[%clk 0:02:52]}  e6 {[%clk 0:02:46]} 6. Nbd2 {[%clk 0:02:53]}  Be7 {[%clk 0:02:46]} 7. Be2 {[%clk 0:02:52]}  O-O {[%clk 0:02:46]} 8. O-O {[%clk 0:02:52]}  d5 {[%clk 0:02:45]} 9. Re1 {[%clk 0:02:53]}  c4 {[%clk 0:02:46]} 10. e5 {[%clk 0:02:52]}  cxd3 {[%clk 0:02:45]} 11. Bxd3 {[%clk 0:02:45]}  Nd7 {[%clk 0:02:42]} 1/2-1/2


[Site "https://www.chess.com"]

[Event "Titled Tuesday Blitz January 10 Late 2023"]
[White "Dudzinski, Pawel"]
[Black "Musovic, Armin"]
[WhiteFideId "1117890"]
[BlackFideId "939935"]
[WhiteElo "2186"]
[BlackElo "2261"]
[Result "1-0"]
[Round "09"]
[TimeControl "180+2"]
[Date "2023.01.10"]
[WhiteClock "0:00:07"]
[BlackClock "0:01:30"]

1. e4 {[%clk 0:00:00]}  c6 {[%clk 0:00:00]} 2. d4 {[%clk 0:02:54]}  d5 {[%clk 0:02:58]} 3. exd5 {[%clk 0:02:53]}  cxd5 {[%clk 0:02:59]} 4. Bd3 {[%clk 0:02:54]}  Nc6 {[%clk 0:03:00]} 5. c3 {[%clk 0:02:53]}  Nf6 {[%clk 0:03:01]} 6. h3 {[%clk 0:02:54]}  g6 {[%clk 0:03:02]} 7. Nf3 {[%clk 0:02:53]}  Bg7 {[%clk 0:03:02]} 8. O-O {[%clk 0:02:53]}  O-O {[%clk 0:03:03]} 9. Re1 {[%clk 0:02:53]}  Re8 {[%clk 0:03:04]} 10. Bf4 {[%clk 0:02:54]}  Nd7 {[%clk 0:03:05]} 11. Nbd2 {[%clk 0:02:51]}  a6 {[%clk 0:03:05]} 12. a4 {[%clk 0:02:43]}  f6 {[%clk 0:03:04]} 13. c4 {[%clk 0:02:42]}  Nb4 {[%clk 0:03:00]} 14. Bf1 {[%clk 0:02:41]}  e5 {[%clk 0:02:53]} 15. dxe5 {[%clk 0:02:35]}  Nxe5 {[%clk 0:02:53]} 16. Qb3 {[%clk 0:02:32]}  a5 {[%clk 0:02:53]} 17. cxd5 {[%clk 0:02:28]}  Nxd5 {[%clk 0:02:42]} 18. Bxe5 {[%clk 0:02:19]}  fxe5 {[%clk 0:02:40]} 19. Bc4 {[%clk 0:01:41]}  Be6 {[%clk 0:02:36]} 20. Nxe5 {[%clk 0:01:41]}  Nf4 {[%clk 0:02:36]} 21. Bxe6+ {[%clk 0:01:40]}  Nxe6 {[%clk 0:02:22]} 22. Nxg6 {[%clk 0:01:25]}  Ra6 {[%clk 0:02:23]} 23. Nf4 {[%clk 0:01:03]}  Qxd2 {[%clk 0:02:13]} 24. Nxe6 {[%clk 0:00:53]}  Kh8 {[%clk 0:02:07]} 25. Qxb7 {[%clk 0:00:47]}  Bd4 {[%clk 0:02:07]} 26. Qxa6 {[%clk 0:00:22]}  Bxf2+ {[%clk 0:01:45]} 27. Kf1 {[%clk 0:00:14]}  Bh4 {[%clk 0:01:43]} 28. Qe2 {[%clk 0:00:07]}  Qh6 {[%clk 0:01:44]} 29. Qe5+ {[%clk 0:00:05]}  Kg8 {[%clk 0:01:33]} 30. Qg7+ {[%clk 0:00:05]}  Qxg7 {[%clk 0:01:34]} 31. Nxg7 {[%clk 0:00:05]}  Rf8+ {[%clk 0:01:33]} 32. Ke2 {[%clk 0:00:05]}  Bxe1 {[%clk 0:01:30]} 33. Rxe1 {[%clk 0:00:03]}  Kxg7 {[%clk 0:01:28]} 34. Rd1 {[%clk 0:00:03]}  Rb8 {[%clk 0:01:28]} 35. Rd2 {[%clk 0:00:03]}  Rb4 {[%clk 0:01:27]} 36. Rd7+ {[%clk 0:00:03]}  Kg6 {[%clk 0:01:28]} 37. Rd2 {[%clk 0:00:02]}  Rxa4 {[%clk 0:01:28]} 38. Kf2 {[%clk 0:00:01]}  Rf4+ {[%clk 0:01:29]} 39. Kg1 {[%clk 0:00:02]}  Rb4 {[%clk 0:01:29]} 40. Kh2 {[%clk 0:00:03]}  Rb3 {[%clk 0:01:29]} 41. Rf2 {[%clk 0:00:03]}  a4 {[%clk 0:01:30]} 42. Kg1 {[%clk 0:00:04]}  h5 {[%clk 0:01:30]} 43. Kh2 {[%clk 0:00:05]}  h4 {[%clk 0:01:29]} 44. Rf4 {[%clk 0:00:05]}  Kg5 {[%clk 0:01:30]} 45. Rg4+ {[%clk 0:00:04]}  Kh5 {[%clk 0:01:28]} 46. Rxa4 {[%clk 0:00:04]}  Rxb2 {[%clk 0:01:29]} 47. Ra5+ {[%clk 0:00:04]}  Kh6 {[%clk 0:01:29]} 48. Rc5 {[%clk 0:00:05]}  Ra2 {[%clk 0:01:30]} 49. Rf5 {[%clk 0:00:05]}  Kg6 {[%clk 0:01:30]} 50. Rf3 {[%clk 0:00:05]}  Rb2 {[%clk 0:01:30]} 51. Kg1 {[%clk 0:00:05]}  Kg5 {[%clk 0:01:29]} 52. Re3 {[%clk 0:00:06]}  Ra2 {[%clk 0:01:29]} 53. Re5+ {[%clk 0:00:05]}  Kg6 {[%clk 0:01:29]} 54. Re4 {[%clk 0:00:05]}  Kg5 {[%clk 0:01:30]} 55. Rg4+ {[%clk 0:00:05]}  Kh5 {[%clk 0:01:30]} 56. Rf4 {[%clk 0:00:05]}  Kg5 {[%clk 0:01:31]} 57. Re4 {[%clk 0:00:04]}  Ra1+ {[%clk 0:01:31]} 58. Kf2 {[%clk 0:00:04]}  Ra2+ {[%clk 0:01:31]} 59. Re2 {[%clk 0:00:04]}  Ra3 {[%clk 0:01:32]} 60. Re3 {[%clk 0:00:04]}  Ra1 {[%clk 0:01:31]} 61. Re5+ {[%clk 0:00:04]}  Kf4 {[%clk 0:01:31]} 62. Rh5 {[%clk 0:00:03]}  Ra2+ {[%clk 0:01:30]} 63. Kg1 {[%clk 0:00:03]}  Kg3 {[%clk 0:01:30]} 64. Rg5+ {[%clk 0:00:03]}  Kf4 {[%clk 0:01:21]} 65. Rg4+ {[%clk 0:00:03]}  Ke3 {[%clk 0:01:21]} 66. Rxh4 {[%clk 0:00:04]}  Ra1+ {[%clk 0:01:22]} 67. Kh2 {[%clk 0:00:04]}  Ra7 {[%clk 0:01:23]} 68. Rg4 {[%clk 0:00:04]}  Kf2 {[%clk 0:01:24]} 69. Rf4+ {[%clk 0:00:04]}  Ke3 {[%clk 0:01:24]} 70. Rf8 {[%clk 0:00:04]}  Ke4 {[%clk 0:01:24]} 71. h4 {[%clk 0:00:04]}  Rh7 {[%clk 0:01:25]} 72. g3 {[%clk 0:00:04]}  Ke5 {[%clk 0:01:25]} 73. Kh3 {[%clk 0:00:04]}  Ke6 {[%clk 0:01:25]} 74. Rf1 {[%clk 0:00:05]}  Ke5 {[%clk 0:01:26]} 75. g4 {[%clk 0:00:05]}  Ke4 {[%clk 0:01:26]} 76. h5 {[%clk 0:00:05]}  Rd7 {[%clk 0:01:27]} 77. Kh4 {[%clk 0:00:05]}  Rd2 {[%clk 0:01:28]} 78. h6 {[%clk 0:00:06]}  Rh2+ {[%clk 0:01:29]} 79. Kg5 {[%clk 0:00:06]}  Rh3 {[%clk 0:01:29]} 80. Kg6 {[%clk 0:00:06]}  Ke3 {[%clk 0:01:29]} 81. g5 {[%clk 0:00:06]}  Ke4 {[%clk 0:01:29]} 82. Rf8 {[%clk 0:00:07]}  Ke5 {[%clk 0:01:30]} 83. h7 {[%clk 0:00:07]}  Rxh7 {[%clk 0:01:30]} 1-0


[Site "https://www.chess.com"]

[Event "Titled Tuesday Blitz January 10 Late 2023"]
[White "Gerbelli Neto, Eduardo"]
[Black "Suvorov, Luca"]
[WhiteFideId "2103281"]
[BlackFideId "12977071"]
[WhiteElo "2114"]
[BlackElo "2310"]
[Result "0-1"]
[Round "09"]
[TimeControl "180+2"]
[Date "2023.01.10"]
[WhiteClock "0:00:20"]
[BlackClock "0:00:17"]

1. e4 {[%clk 0:00:00]}  c6 {[%clk 0:00:00]} 2. d4 {[%clk 0:03:00]}  d5 {[%clk 0:02:59]} 3. exd5 {[%clk 0:02:59]}  cxd5 {[%clk 0:02:59]} 4. c4 {[%clk 0:03:00]}  Nf6 {[%clk 0:02:59]} 5. Nc3 {[%clk 0:03:01]}  dxc4 {[%clk 0:02:57]} 6. Bxc4 {[%clk 0:03:02]}  g6 {[%clk 0:02:56]} 7. Qb3 {[%clk 0:03:01]}  e6 {[%clk 0:02:55]} 8. Nf3 {[%clk 0:02:58]}  Bg7 {[%clk 0:02:53]} 9. O-O {[%clk 0:02:52]}  O-O {[%clk 0:02:53]} 10. Bg5 {[%clk 0:02:42]}  Nc6 {[%clk 0:02:52]} 11. Qd1 {[%clk 0:02:42]}  Qc7 {[%clk 0:02:44]} 12. Rc1 {[%clk 0:02:42]}  a6 {[%clk 0:02:31]} 13. d5 {[%clk 0:02:29]}  exd5 {[%clk 0:02:08]} 14. Nxd5 {[%clk 0:01:52]}  Nxd5 {[%clk 0:02:03]} 15. Bxd5 {[%clk 0:01:52]}  Bxb2 {[%clk 0:02:03]} 16. Rc2 {[%clk 0:01:51]}  Bg7 {[%clk 0:01:44]} 17. Qc1 {[%clk 0:01:25]}  Bf5 {[%clk 0:01:42]} 18. Rc4 {[%clk 0:01:13]}  Bd3 {[%clk 0:01:20]} 19. Bh6 {[%clk 0:01:05]}  Bxc4 {[%clk 0:01:17]} 20. Bxc4 {[%clk 0:00:35]}  Ne5 {[%clk 0:00:22]} 21. Nxe5 {[%clk 0:00:36]}  Qxe5 {[%clk 0:00:22]} 22. Be3 {[%clk 0:00:27]}  Rac8 {[%clk 0:00:18]} 23. a4 {[%clk 0:00:25]}  b5 {[%clk 0:00:18]} 24. axb5 {[%clk 0:00:20]}  axb5 {[%clk 0:00:17]} 0-1


[Site "https://www.chess.com"]

[Event "Titled Tuesday Blitz January 10 Late 2023"]
[White "Zampronha, Wladimir Camilo"]
[Black "Perez Rodriguez, Jennifer"]
[WhiteFideId "2103087"]
[BlackFideId "3507831"]
[WhiteElo "2176"]
[BlackElo "2242"]
[Result "1-0"]
[Round "09"]
[TimeControl "180+2"]
[Date "2023.01.10"]
[WhiteClock "0:00:12"]
[BlackClock "0:00:06"]

1. e4 {[%clk 0:00:00]}  e5 {[%clk 0:00:00]} 2. Nf3 {[%clk 0:03:00]}  Nc6 {[%clk 0:02:59]} 3. d4 {[%clk 0:03:01]}  exd4 {[%clk 0:02:59]} 4. Nxd4 {[%clk 0:03:02]}  Bb4+ {[%clk 0:02:59]} 5. c3 {[%clk 0:03:03]}  Bc5 {[%clk 0:02:59]} 6. Be3 {[%clk 0:03:02]}  Bb6 {[%clk 0:03:00]} 7. Nf5 {[%clk 0:02:58]}  Bxe3 {[%clk 0:03:00]} 8. Nxe3 {[%clk 0:02:58]}  Nge7 {[%clk 0:02:59]} 9. Nd2 {[%clk 0:02:59]}  O-O {[%clk 0:02:59]} 10. Be2 {[%clk 0:02:58]}  d5 {[%clk 0:02:59]} 11. exd5 {[%clk 0:02:57]}  Nxd5 {[%clk 0:02:59]} 12. Nxd5 {[%clk 0:02:55]}  Qxd5 {[%clk 0:03:00]} 13. O-O {[%clk 0:02:54]}  Be6 {[%clk 0:03:01]} 14. Bf3 {[%clk 0:02:50]}  Qd6 {[%clk 0:02:57]} 15. Nb3 {[%clk 0:02:45]}  Rad8 {[%clk 0:02:54]} 16. Qxd6 {[%clk 0:02:43]}  Rxd6 {[%clk 0:02:44]} 17. Nc5 {[%clk 0:02:37]}  Bc8 {[%clk 0:02:44]} 18. Rfe1 {[%clk 0:02:29]}  Rd2 {[%clk 0:02:41]} 19. Re2 {[%clk 0:02:27]}  Rxe2 {[%clk 0:02:39]} 20. Bxe2 {[%clk 0:02:14]}  b6 {[%clk 0:02:39]} 21. Nb3 {[%clk 0:02:15]}  Be6 {[%clk 0:02:38]} 22. Bb5 {[%clk 0:02:12]}  Ne5 {[%clk 0:02:28]} 23. Nd4 {[%clk 0:02:04]}  Bd5 {[%clk 0:02:26]} 24. f4 {[%clk 0:02:01]}  Ng6 {[%clk 0:02:21]} 25. g3 {[%clk 0:01:52]}  c5 {[%clk 0:02:11]} 26. Bc6 {[%clk 0:01:51]}  cxd4 {[%clk 0:02:12]} 27. Bxd5 {[%clk 0:01:40]}  dxc3 {[%clk 0:01:15]} 28. bxc3 {[%clk 0:01:39]}  Ne7 {[%clk 0:01:15]} 29. Bb3 {[%clk 0:01:40]}  Rc8 {[%clk 0:01:13]} 30. Rd1 {[%clk 0:01:36]}  Kf8 {[%clk 0:01:13]} 31. Rd7 {[%clk 0:01:34]}  a5 {[%clk 0:01:04]} 32. Rb7 {[%clk 0:01:33]}  Rc6 {[%clk 0:01:03]} 33. Rb8+ {[%clk 0:01:30]}  Nc8 {[%clk 0:00:57]} 34. Rb7 {[%clk 0:01:25]}  Nd6 {[%clk 0:00:56]} 35. Rb8+ {[%clk 0:01:26]}  Ke7 {[%clk 0:00:55]} 36. Kg2 {[%clk 0:01:22]}  b5 {[%clk 0:00:54]} 37. Bd5 {[%clk 0:01:13]}  Rxc3 {[%clk 0:00:54]} 38. Ra8 {[%clk 0:01:06]}  a4 {[%clk 0:00:53]} 39. Ra7+ {[%clk 0:01:00]}  Ke8 {[%clk 0:00:51]} 40. g4 {[%clk 0:00:57]}  Rd3 {[%clk 0:00:49]} 41. Bc6+ {[%clk 0:00:51]}  Kf8 {[%clk 0:00:47]} 42. Rd7 {[%clk 0:00:49]}  Rd2+ {[%clk 0:00:45]} 43. Kf3 {[%clk 0:00:31]}  Nc4 {[%clk 0:00:35]} 44. Rxd2 {[%clk 0:00:30]}  Nxd2+ {[%clk 0:00:19]} 45. Ke2 {[%clk 0:00:30]}  Nb1 {[%clk 0:00:19]} 46. Kd3 {[%clk 0:00:29]}  b4 {[%clk 0:00:17]} 47. Bxa4 {[%clk 0:00:27]}  Nc3 {[%clk 0:00:15]} 48. Bb3 {[%clk 0:00:26]}  Ke7 {[%clk 0:00:15]} 49. Kd4 {[%clk 0:00:26]}  Ne2+ {[%clk 0:00:15]} 50. Ke5 {[%clk 0:00:26]}  f6+ {[%clk 0:00:15]} 51. Ke4 {[%clk 0:00:25]}  Kd6 {[%clk 0:00:16]} 52. Ke3 {[%clk 0:00:23]}  Nc3 {[%clk 0:00:16]} 53. Kd4 {[%clk 0:00:23]}  Ne2+ {[%clk 0:00:16]} 54. Ke3 {[%clk 0:00:23]}  Nc1 {[%clk 0:00:15]} 55. Bg8 {[%clk 0:00:23]}  Kc5 {[%clk 0:00:16]} 56. h4 {[%clk 0:00:21]}  h6 {[%clk 0:00:15]} 57. Kd2 {[%clk 0:00:19]}  Kd4 {[%clk 0:00:06]} 58. Kxc1 {[%clk 0:00:19]}  Ke4 {[%clk 0:00:06]} 59. Kb2 {[%clk 0:00:19]}  Kxf4 {[%clk 0:00:07]} 60. Be6 {[%clk 0:00:17]}  Ke5 {[%clk 0:00:08]} 61. Bc8 {[%clk 0:00:17]}  h5 {[%clk 0:00:06]} 62. gxh5 {[%clk 0:00:16]}  f5 {[%clk 0:00:07]} 63. Kb3 {[%clk 0:00:15]}  f4 {[%clk 0:00:07]} 64. Kxb4 {[%clk 0:00:15]}  f3 {[%clk 0:00:07]} 65. Ba6 {[%clk 0:00:15]}  f2 {[%clk 0:00:07]} 66. Kc5 {[%clk 0:00:14]}  Kf4 {[%clk 0:00:07]} 67. a4 {[%clk 0:00:13]}  Kg4 {[%clk 0:00:06]} 68. a5 {[%clk 0:00:12]}  Kxh4 {[%clk 0:00:06]} 69. Be2 {[%clk 0:00:12]} 1-0


[Site "https://www.chess.com"]

[Event "Titled Tuesday Blitz January 10 Late 2023"]
[White "Melikhov, Evgeny V."]
[Black "Kabilov, Amin"]
[WhiteFideId "4122046"]
[BlackFideId "14700859"]
[WhiteElo "2269"]
[BlackElo "2207"]
[Result "0-1"]
[Round "09"]
[TimeControl "180+2"]
[Date "2023.01.10"]
[WhiteClock "0:00:46"]
[BlackClock "0:01:19"]

1. d4 {[%clk 0:00:00]}  Nf6 {[%clk 0:00:00]} 2. c4 {[%clk 0:03:00]}  g6 {[%clk 0:02:59]} 3. Nc3 {[%clk 0:02:57]}  Bg7 {[%clk 0:02:56]} 4. e4 {[%clk 0:02:57]}  O-O {[%clk 0:02:57]} 5. Be3 {[%clk 0:02:57]}  c6 {[%clk 0:02:57]} 6. e5 {[%clk 0:02:56]}  Ne8 {[%clk 0:02:51]} 7. f4 {[%clk 0:02:41]}  d6 {[%clk 0:02:50]} 8. Nf3 {[%clk 0:02:41]}  Bg4 {[%clk 0:02:48]} 9. h3 {[%clk 0:02:41]}  Bxf3 {[%clk 0:02:43]} 10. Qxf3 {[%clk 0:02:29]}  c5 {[%clk 0:02:42]} 11. O-O-O {[%clk 0:02:29]}  cxd4 {[%clk 0:02:36]} 12. Bxd4 {[%clk 0:02:21]}  Nc6 {[%clk 0:02:31]} 13. Nd5 {[%clk 0:02:16]}  Nxd4 {[%clk 0:02:31]} 14. Rxd4 {[%clk 0:01:47]}  e6 {[%clk 0:02:11]} 15. Nc3 {[%clk 0:01:46]}  Qb6 {[%clk 0:02:11]} 16. Qe3 {[%clk 0:01:38]}  dxe5 {[%clk 0:02:11]} 17. fxe5 {[%clk 0:01:18]}  Bh6 {[%clk 0:02:00]} 18. Qxh6 {[%clk 0:01:18]}  Qxd4 {[%clk 0:01:55]} 19. Be2 {[%clk 0:01:18]}  Qxe5 {[%clk 0:01:55]} 20. Bf3 {[%clk 0:01:02]}  Rc8 {[%clk 0:01:44]} 21. h4 {[%clk 0:01:02]}  Ng7 {[%clk 0:01:42]} 22. h5 {[%clk 0:00:56]}  g5 {[%clk 0:01:32]} 23. Ne4 {[%clk 0:00:53]}  Rxc4+ {[%clk 0:01:29]} 24. Kb1 {[%clk 0:00:47]}  Rxe4 {[%clk 0:01:20]} 25. Bxe4 {[%clk 0:00:47]}  Qxe4+ {[%clk 0:01:19]} 26. Ka1 {[%clk 0:00:46]}  f6 {[%clk 0:01:20]} 27. Rd1 {[%clk 0:00:46]}  Nf5 {[%clk 0:01:19]} 0-1


[Site "https://www.chess.com"]